[Event "*** Titled Tuesday Blitz"]
[Site "Chess.com"]
[Date "2021.04.06"]
[Round "11"]
[White "azikom"]
[Black "ukchessbomber"]
[Result "0-1"]
[WhiteElo "2688"]
[BlackElo "2531"]
[TimeControl "180+1"]
[EndTime "12:09:22 PDT"]
[Termination "ukchessbomber won on time"]

1. d4 {[%clk 0:02:58.9]} 1... Nf6 {[%clk 0:02:59.8]} 2. Nf3 {[%clk 0:02:58.1]}
2... g6 {[%clk 0:03:00.1]} 3. Bf4 {[%clk 0:02:57.9]} 3... Bg7 {[%clk 0:03:00.5]}
4. e3 {[%clk 0:02:58.3]} 4... O-O {[%clk 0:03:00.9]} 5. h3 {[%clk 0:02:58.2]}
5... d5 {[%clk 0:03:01.2]} 6. Nbd2 {[%clk 0:02:57]} 6... c5 {[%clk 0:03:01.6]}
7. c3 {[%clk 0:02:57.1]} 7... Nc6 {[%clk 0:03:01.7]} 8. Be2 {[%clk 0:02:57.1]}
8... Re8 {[%clk 0:03:02]} 9. Bh2 {[%clk 0:02:56.4]} 9... Nd7 {[%clk 0:02:57.4]}
10. Nb3 {[%clk 0:02:54.6]} 10... c4 {[%clk 0:02:27]} 11. Nbd2 {[%clk 0:02:53.9]}
11... e5 {[%clk 0:02:27.6]} 12. O-O {[%clk 0:02:46.6]} 12... e4 {[%clk
0:02:25.4]} 13. Ne1 {[%clk 0:02:46.1]} 13... f5 {[%clk 0:02:18.7]} 14. b3 {[%clk
0:02:45.6]} 14... cxb3 {[%clk 0:01:44.7]} 15. axb3 {[%clk 0:02:45.1]} 15... g5
{[%clk 0:01:42.7]} 16. Nc2 {[%clk 0:02:43]} 16... Rf8 {[%clk 0:01:42]} 17. f4
{[%clk 0:02:39.3]} 17... exf3 {[%clk 0:01:25]} 18. Bxf3 {[%clk 0:02:13.1]} 18...
Nf6 {[%clk 0:01:24.7]} 19. Be2 {[%clk 0:02:11.6]} 19... Qe8 {[%clk 0:01:13.6]}
20. Kh1 {[%clk 0:02:07.9]} 20... h5 {[%clk 0:01:11.6]} 21. c4 {[%clk 0:02:05.7]}
21... Be6 {[%clk 0:01:10.6]} 22. cxd5 {[%clk 0:01:54.5]} 22... Bxd5 {[%clk
0:01:10.8]} 23. Rxf5 {[%clk 0:01:48.8]} 23... Ne4 {[%clk 0:00:51.7]} 24. Nxe4
{[%clk 0:01:15.3]} 24... Rxf5 {[%clk 0:00:27.9]} 25. Nd6 {[%clk 0:01:14.6]}
25... Qe6 {[%clk 0:00:28.3]} 26. Nxf5 {[%clk 0:01:10.8]} 26... Qxf5 {[%clk
0:00:29.2]} 27. Bd3 {[%clk 0:00:43.8]} 27... Qf2 {[%clk 0:00:28.9]} 28. e4
{[%clk 0:00:27.1]} 28... Bxb3 {[%clk 0:00:28.1]} 29. Bg1 {[%clk 0:00:21.1]}
29... Qg3 {[%clk 0:00:25.1]} 30. Rb1 {[%clk 0:00:17.4]} 30... Bxc2 {[%clk
0:00:17.7]} 31. Bxc2 {[%clk 0:00:16.5]} 31... Rd8 {[%clk 0:00:16]} 32. d5 {[%clk
0:00:12.9]} 32... Na5 {[%clk 0:00:10.3]} 33. Qxh5 {[%clk 0:00:11.7]} 33... Qh4
{[%clk 0:00:08.8]} 34. Qxh4 {[%clk 0:00:11.2]} 34... gxh4 {[%clk 0:00:09.7]} 35.
Bxa7 {[%clk 0:00:10.5]} 35... Rc8 {[%clk 0:00:09.5]} 36. Bd3 {[%clk 0:00:10.3]}
36... Be5 {[%clk 0:00:08.9]} 37. Bf2 {[%clk 0:00:09.1]} 37... Rc3 {[%clk
0:00:07.7]} 38. Be2 {[%clk 0:00:08.6]} 38... Rc2 {[%clk 0:00:08.1]} 39. Bxh4
{[%clk 0:00:07.5]} 39... Rxe2 {[%clk 0:00:07.6]} 40. Be1 {[%clk 0:00:07]} 40...
Nc4 {[%clk 0:00:07.1]} 41. Bh4 {[%clk 0:00:05.9]} 41... Rc2 {[%clk 0:00:05.7]}
42. g4 {[%clk 0:00:04.3]} 42... Na5 {[%clk 0:00:05.1]} 43. Kg1 {[%clk
0:00:03.3]} 43... Rc4 {[%clk 0:00:05.6]} 44. Re1 {[%clk 0:00:02.6]} 44... Bc3
{[%clk 0:00:05.9]} 45. Re2 {[%clk 0:00:02.7]} 45... Be5 {[%clk 0:00:06.5]} 46.
Kg2 {[%clk 0:00:02.5]} 46... Nb3 {[%clk 0:00:07]} 47. Bg3 {[%clk 0:00:02.3]}
47... Nd4 {[%clk 0:00:06.1]} 48. Re1 {[%clk 0:00:02.4]} 48... Rc2+ {[%clk
0:00:06]} 49. Bf2 {[%clk 0:00:02.8]} 49... Nb3 {[%clk 0:00:05.5]} 50. Rb1 {[%clk
0:00:02.9]} 50... Nc5 {[%clk 0:00:05.2]} 51. Kf3 {[%clk 0:00:01.7]} 51... Nd3
{[%clk 0:00:05.4]} 52. Be3 {[%clk 0:00:01.8]} 52... Rc7 {[%clk 0:00:04.4]} 53.
Rb3 {[%clk 0:00:01.4]} 53... Ne1+ {[%clk 0:00:03.4]} 54. Ke2 {[%clk 0:00:01.6]}
54... Nc2 {[%clk 0:00:04.3]} 55. Bf2 {[%clk 0:00:02]} 55... Bd4 {[%clk
0:00:04.1]} 56. Bg3 {[%clk 0:00:01.9]} 56... Rf7 {[%clk 0:00:03.8]} 57. Kd3
{[%clk 0:00:02]} 57... Na1 {[%clk 0:00:02.9]} 58. Kxd4 {[%clk 0:00:02.1]} 58...
Nxb3+ {[%clk 0:00:02.7]} 59. Ke5 {[%clk 0:00:02.4]} 59... Nd2 {[%clk 0:00:02.8]}
60. d6 {[%clk 0:00:01.3]} 60... Rd7 {[%clk 0:00:02.5]} 61. Ke6 {[%clk
0:00:01.3]} 61... Rd8 {[%clk 0:00:02.6]} 62. e5 {[%clk 0:00:01.6]} 62... Nc4
{[%clk 0:00:02.9]} 63. Kd5 {[%clk 0:00:01.7]} 63... Nb6+ {[%clk 0:00:02.9]} 64.
Kc5 {[%clk 0:00:01.6]} 64... Nd7+ {[%clk 0:00:03.1]} 65. Kd5 {[%clk 0:00:02.2]}
65... Re8 {[%clk 0:00:03.7]} 66. e6 {[%clk 0:00:02.4]} 66... Nf6+ {[%clk
0:00:04.3]} 67. Ke5 {[%clk 0:00:02.8]} 67... Nd7+ {[%clk 0:00:04.9]} 68. Kd5
{[%clk 0:00:02.9]} 68... Nb6+ {[%clk 0:00:05.3]} 69. Ke5 {[%clk 0:00:03.1]}
69... Kf8 {[%clk 0:00:03.8]} 70. d7 {[%clk 0:00:02.8]} 70... Nxd7+ {[%clk
0:00:03.7]} 71. Kd6 {[%clk 0:00:03.2]} 71... Nf6 {[%clk 0:00:04.2]} 72. Be5
{[%clk 0:00:03]} 72... Ne4+ {[%clk 0:00:04.6]} 73. Kd5 {[%clk 0:00:03.3]} 73...
Ng5 {[%clk 0:00:05.1]} 74. h4 {[%clk 0:00:02.5]} 74... Nxe6 {[%clk 0:00:05.2]}
75. g5 {[%clk 0:00:02.2]} 75... Kf7 {[%clk 0:00:05.6]} 76. h5 {[%clk 0:00:02.5]}
76... Nxg5 {[%clk 0:00:05.7]} 77. Bf4 {[%clk 0:00:01.2]} 77... Nh7 {[%clk
0:00:05.8]} 0-1

[Event "*** Titled Tuesday Blitz"]
[Site "Chess.com"]
[Date "2021.04.06"]
[Round "11"]
[White "ahmad_alkhatib11"]
[Black "volkanyirik"]
[Result "1/2-1/2"]
[WhiteElo "2285"]
[BlackElo "2409"]
[TimeControl "180+1"]
[EndTime "12:09:29 PDT"]
[Termination "Game drawn by repetition"]

1. Nf3 {[%clk 0:03:00.9]} 1... Nf6 {[%clk 0:02:59.7]} 2. d4 {[%clk 0:03:00.7]}
2... g6 {[%clk 0:03:00.6]} 3. Bg5 {[%clk 0:03:00.1]} 3... Bg7 {[%clk 0:03:01.1]}
4. Nbd2 {[%clk 0:03:00.2]} 4... O-O {[%clk 0:03:01.1]} 5. e4 {[%clk 0:02:59.9]}
5... d6 {[%clk 0:03:01.2]} 6. c3 {[%clk 0:02:59.7]} 6... c5 {[%clk 0:03:01.2]}
7. Be2 {[%clk 0:02:59.2]} 7... cxd4 {[%clk 0:03:01.2]} 8. cxd4 {[%clk
0:03:00.1]} 8... Nc6 {[%clk 0:03:01]} 9. O-O {[%clk 0:02:51.4]} 9... d5 {[%clk
0:02:56.9]} 10. e5 {[%clk 0:02:40.7]} 10... Ne4 {[%clk 0:02:45.7]} 11. Be3
{[%clk 0:02:40.7]} 11... Bg4 {[%clk 0:02:37]} 12. h3 {[%clk 0:02:17.6]} 12...
Bxf3 {[%clk 0:02:35.6]} 13. Nxf3 {[%clk 0:02:17.4]} 13... e6 {[%clk 0:02:34.6]}
14. Nd2 {[%clk 0:02:12.7]} 14... Nxd2 {[%clk 0:02:32.6]} 15. Qxd2 {[%clk
0:02:13.6]} 15... Qb6 {[%clk 0:02:32.7]} 16. Rac1 {[%clk 0:01:47.7]} 16... Rac8
{[%clk 0:02:31.8]} 17. Rfe1 {[%clk 0:01:34.5]} 17... Rc7 {[%clk 0:02:14]} 18. a3
{[%clk 0:01:14]} 18... Rfc8 {[%clk 0:02:13.9]} 19. b4 {[%clk 0:01:12]} 19... Ne7
{[%clk 0:02:09.1]} 20. Rc5 {[%clk 0:01:07.9]} 20... Nf5 {[%clk 0:02:06.6]} 21.
Rec1 {[%clk 0:01:06.3]} 21... Bf8 {[%clk 0:02:06.5]} 22. Rxc7 {[%clk 0:01:02.1]}
22... Rxc7 {[%clk 0:02:05.3]} 23. Rxc7 {[%clk 0:00:39.2]} 23... Qxc7 {[%clk
0:02:04.8]} 24. g4 {[%clk 0:00:38.6]} 24... Nxe3 {[%clk 0:02:01]} 25. Qxe3
{[%clk 0:00:36.7]} 25... Qc2 {[%clk 0:01:58.7]} 26. Kg2 {[%clk 0:00:33]} 26...
Qb2 {[%clk 0:01:44.7]} 27. f4 {[%clk 0:00:22.4]} 27... a5 {[%clk 0:01:41.9]} 28.
bxa5 {[%clk 0:00:22.1]} 28... Bxa3 {[%clk 0:01:38]} 29. f5 {[%clk 0:00:19]}
29... Qc1 {[%clk 0:01:34.9]} 30. Qxc1 {[%clk 0:00:17.7]} 30... Bxc1 {[%clk
0:01:34.7]} 31. Kf3 {[%clk 0:00:13.1]} 31... Kf8 {[%clk 0:01:24.1]} 32. a6
{[%clk 0:00:12.5]} 32... bxa6 {[%clk 0:01:23.7]} 33. Bxa6 {[%clk 0:00:13.4]}
33... gxf5 {[%clk 0:01:20.9]} 34. gxf5 {[%clk 0:00:13.5]} 34... Kg7 {[%clk
0:01:20.1]} 35. Bd3 {[%clk 0:00:11.4]} 35... exf5 {[%clk 0:01:14.1]} 36. Bxf5
{[%clk 0:00:11.2]} 36... h6 {[%clk 0:01:14.3]} 37. Bd7 {[%clk 0:00:11]} 37... f6
{[%clk 0:01:11]} 38. e6 {[%clk 0:00:08.5]} 38... Kf8 {[%clk 0:01:10.1]} 39. Bc6
{[%clk 0:00:08.5]} 39... Ke7 {[%clk 0:01:08.9]} 40. Bxd5 {[%clk 0:00:08.8]}
40... Kd6 {[%clk 0:01:09.8]} 41. Ba2 {[%clk 0:00:07.8]} 41... Bb2 {[%clk
0:01:09.5]} 42. Ke4 {[%clk 0:00:07.8]} 42... Bc1 {[%clk 0:01:08]} 43. d5 {[%clk
0:00:07.3]} 43... Ke7 {[%clk 0:01:00.8]} 44. Kf5 {[%clk 0:00:08.2]} 44... Be3
{[%clk 0:00:58.7]} 45. Kg6 {[%clk 0:00:08.5]} 45... Bg5 {[%clk 0:00:49.9]} 46.
Kf5 {[%clk 0:00:08.8]} 46... Kd6 {[%clk 0:00:48.9]} 47. Bb3 {[%clk 0:00:08.9]}
47... Bh4 {[%clk 0:00:48.7]} 48. Ba2 {[%clk 0:00:09.3]} 48... Bg5 {[%clk
0:00:40.8]} 49. Kg4 {[%clk 0:00:10.2]} 49... Ke7 {[%clk 0:00:38.1]} 50. h4
{[%clk 0:00:10.2]} 50... Be3 {[%clk 0:00:38.1]} 51. Kf5 {[%clk 0:00:10.1]} 51...
Bf2 {[%clk 0:00:36.9]} 52. h5 {[%clk 0:00:08.7]} 52... Be3 {[%clk 0:00:36.8]}
53. Kg6 {[%clk 0:00:09.1]} 53... Bg5 {[%clk 0:00:35.5]} 54. Kf5 {[%clk
0:00:09.3]} 54... Kd6 {[%clk 0:00:34.7]} 55. Bb3 {[%clk 0:00:08.7]} 55... Bh4
{[%clk 0:00:31.6]} 56. Kg6 {[%clk 0:00:09.6]} 56... Bg5 {[%clk 0:00:31.1]} 57.
Kf7 {[%clk 0:00:09.6]} 57... f5 {[%clk 0:00:31.6]} 58. Bc2 {[%clk 0:00:05.1]}
58... f4 {[%clk 0:00:31.9]} 59. Be4 {[%clk 0:00:04.9]} 59... Be7 {[%clk
0:00:31.9]} 60. Bf3 {[%clk 0:00:05]} 60... Bg5 {[%clk 0:00:32.7]} 61. Kg6 {[%clk
0:00:05.3]} 61... Ke7 {[%clk 0:00:30.5]} 62. Kf5 {[%clk 0:00:05.7]} 62... Kd6
{[%clk 0:00:30.8]} 63. Kg6 {[%clk 0:00:05.7]} 63... Ke7 {[%clk 0:00:30.9]} 64.
Kf5 {[%clk 0:00:06.2]} 64... Kd6 {[%clk 0:00:31.2]} 65. Ke4 {[%clk 0:00:06.7]}
65... Ke7 {[%clk 0:00:28.8]} 66. Ke5 {[%clk 0:00:06.9]} 66... Bf6+ {[%clk
0:00:28.3]} 67. Kxf4 {[%clk 0:00:07.1]} 67... Kd6 {[%clk 0:00:28.2]} 68. Kf5
{[%clk 0:00:07.5]} 68... Bg5 {[%clk 0:00:28.8]} 69. Kg6 {[%clk 0:00:07.9]} 69...
Ke7 {[%clk 0:00:28.4]} 70. Bg2 {[%clk 0:00:07.1]} 70... Kd6 {[%clk 0:00:28.3]}
71. Bh1 {[%clk 0:00:08]} 71... Ke7 {[%clk 0:00:28.1]} 72. Bg2 {[%clk 0:00:08.9]}
72... Kd6 {[%clk 0:00:28.3]} 73. Bf3 {[%clk 0:00:09.8]} 73... Ke7 {[%clk
0:00:28.6]} 74. Kf5 {[%clk 0:00:10.2]} 74... Kd6 {[%clk 0:00:27.9]} 75. Be4
{[%clk 0:00:10.3]} 75... Bd2 {[%clk 0:00:25.9]} 76. Kg6 {[%clk 0:00:10.6]} 76...
Bg5 {[%clk 0:00:25.7]} 77. Kf7 {[%clk 0:00:10.6]} 77... Bh4 {[%clk 0:00:26]} 78.
Bd3 {[%clk 0:00:10.5]} 78... Bg5 {[%clk 0:00:26.2]} 79. Bc4 {[%clk 0:00:10.4]}
79... Bh4 {[%clk 0:00:26.3]} 80. Ba2 {[%clk 0:00:11.3]} 80... Bg5 {[%clk
0:00:26.3]} 81. Bb3 {[%clk 0:00:12.2]} 81... Bh4 {[%clk 0:00:26.6]} 82. Ba2
{[%clk 0:00:13.1]} 82... Bg5 {[%clk 0:00:26.8]} 83. Kg7 {[%clk 0:00:14]} 83...
Ke7 {[%clk 0:00:25.4]} 84. Kg6 {[%clk 0:00:14.5]} 84... Kd6 {[%clk 0:00:25]} 85.
Kf5 {[%clk 0:00:15]} 85... Bh4 {[%clk 0:00:21.9]} 86. Kg4 {[%clk 0:00:14.7]}
86... Bg5 {[%clk 0:00:22]} 87. Kf3 {[%clk 0:00:15.6]} 87... Bh4 {[%clk
0:00:22.2]} 88. Ke4 {[%clk 0:00:16.5]} 88... Bg5 {[%clk 0:00:22.9]} 89. Kf5
{[%clk 0:00:17]} 89... Bh4 {[%clk 0:00:23.1]} 90. Kg6 {[%clk 0:00:17.4]} 90...
Bg5 {[%clk 0:00:23.4]} 91. Kh7 {[%clk 0:00:18]} 91... Ke7 {[%clk 0:00:23.3]} 92.
Kg7 {[%clk 0:00:17.8]} 92... Kd6 {[%clk 0:00:22.9]} 93. Kf7 {[%clk 0:00:17.6]}
93... Bh4 {[%clk 0:00:23.2]} 94. Bb1 {[%clk 0:00:16.8]} 94... Bg5 {[%clk
0:00:23]} 95. Be4 {[%clk 0:00:17]} 95... Bh4 {[%clk 0:00:22.9]} 96. Kg6 {[%clk
0:00:17]} 96... Bg5 {[%clk 0:00:23]} 97. Bf3 {[%clk 0:00:17.9]} 1/2-1/2

[Event "*** Titled Tuesday Blitz"]
[Site "Chess.com"]
[Date "2021.04.06"]
[Round "11"]
[White "Mikhal867"]
[Black "Fortitudine"]
[Result "1-0"]
[WhiteElo "2437"]
[BlackElo "2271"]
[TimeControl "180+1"]
[EndTime "12:09:37 PDT"]
[Termination "Mikhal867 won on time"]

1. d4 {[%clk 0:02:59.4]} 1... Nf6 {[%clk 0:02:59.4]} 2. c4 {[%clk 0:02:57.3]}
2... c5 {[%clk 0:02:59.3]} 3. Nf3 {[%clk 0:02:56.1]} 3... cxd4 {[%clk
0:02:58.9]} 4. Nxd4 {[%clk 0:02:53]} 4... e5 {[%clk 0:02:59]} 5. Nb3 {[%clk
0:02:51.6]} 5... d5 {[%clk 0:02:58.1]} 6. cxd5 {[%clk 0:02:50.6]} 6... Qxd5
{[%clk 0:02:59]} 7. Qxd5 {[%clk 0:02:49.6]} 7... Nxd5 {[%clk 0:02:59.9]} 8. e4
{[%clk 0:02:49.3]} 8... Nb4 {[%clk 0:02:56.9]} 9. Na3 {[%clk 0:02:43.7]} 9...
Be7 {[%clk 0:02:51.8]} 10. Bb5+ {[%clk 0:02:41]} 10... Bd7 {[%clk 0:02:47.8]}
11. O-O {[%clk 0:02:35.6]} 11... O-O {[%clk 0:02:34.3]} 12. Be3 {[%clk
0:02:32.9]} 12... a6 {[%clk 0:02:23.8]} 13. Bc4 {[%clk 0:02:30.6]} 13... b5
{[%clk 0:02:07.4]} 14. Bd5 {[%clk 0:02:28.6]} 14... Nxd5 {[%clk 0:02:07.5]} 15.
exd5 {[%clk 0:02:26.5]} 15... b4 {[%clk 0:01:22.6]} 16. Nc4 {[%clk 0:02:25.3]}
16... Bb5 {[%clk 0:01:23.1]} 17. Rfc1 {[%clk 0:02:21.8]} 17... Bxc4 {[%clk
0:01:20.2]} 18. Rxc4 {[%clk 0:02:20.9]} 18... Bd6 {[%clk 0:01:19.4]} 19. Bc5
{[%clk 0:02:18.2]} 19... Bxc5 {[%clk 0:00:44.6]} 20. Nxc5 {[%clk 0:02:17.1]}
20... a5 {[%clk 0:00:45]} 21. a3 {[%clk 0:02:13]} 21... bxa3 {[%clk 0:00:36.4]}
22. Rxa3 {[%clk 0:02:12.4]} 22... Ra7 {[%clk 0:00:31.3]} 23. b4 {[%clk
0:02:05.9]} 23... a4 {[%clk 0:00:24.7]} 24. Rxa4 {[%clk 0:02:01.3]} 24... Rxa4
{[%clk 0:00:24.1]} 25. Nxa4 {[%clk 0:01:58.9]} 25... Nd7 {[%clk 0:00:24.5]} 26.
b5 {[%clk 0:01:47.9]} 26... Ra8 {[%clk 0:00:20.2]} 27. h3 {[%clk 0:01:43.2]}
27... g6 {[%clk 0:00:19.6]} 28. b6 {[%clk 0:01:42.2]} 28... Rb8 {[%clk
0:00:18.9]} 29. Rb4 {[%clk 0:01:38.4]} 29... Kf8 {[%clk 0:00:19.1]} 30. b7
{[%clk 0:01:33.1]} 30... Ke7 {[%clk 0:00:18.9]} 31. Rb5 {[%clk 0:01:32.1]} 31...
Kd6 {[%clk 0:00:18.5]} 32. Nc3 {[%clk 0:01:32.1]} 32... Kc7 {[%clk 0:00:18.1]}
33. Ne4 {[%clk 0:01:32.1]} 33... Rxb7 {[%clk 0:00:17.1]} 34. Rxb7+ {[%clk
0:01:31.9]} 34... Kxb7 {[%clk 0:00:17.5]} 35. Nd6+ {[%clk 0:01:31.7]} 35... Kb6
{[%clk 0:00:17.2]} 36. Nxf7 {[%clk 0:01:31.5]} 36... Kc5 {[%clk 0:00:17.9]} 37.
d6 {[%clk 0:01:31.1]} 37... Kd5 {[%clk 0:00:18.3]} 38. Kf1 {[%clk 0:01:29.6]}
38... h5 {[%clk 0:00:17.9]} 39. Nh8 {[%clk 0:01:24.7]} 39... g5 {[%clk
0:00:16.6]} 40. Nf7 {[%clk 0:01:24.4]} 40... g4 {[%clk 0:00:16.8]} 41. hxg4
{[%clk 0:01:20.9]} 41... hxg4 {[%clk 0:00:17.7]} 42. Nh6 {[%clk 0:01:20.2]}
42... g3 {[%clk 0:00:17.8]} 43. f3 {[%clk 0:01:16.5]} 43... Kxd6 {[%clk
0:00:17.4]} 44. Nf5+ {[%clk 0:01:16]} 44... Ke6 {[%clk 0:00:17.8]} 45. Nxg3
{[%clk 0:01:16.2]} 45... Nf6 {[%clk 0:00:17.6]} 46. Kf2 {[%clk 0:01:15.2]} 46...
Nd5 {[%clk 0:00:17.2]} 47. Ne4 {[%clk 0:01:14.5]} 47... Nf4 {[%clk 0:00:15]} 48.
g3 {[%clk 0:01:11.6]} 48... Ng6 {[%clk 0:00:15.4]} 49. Ke3 {[%clk 0:01:11]}
49... Kf5 {[%clk 0:00:15.4]} 50. Nf2 {[%clk 0:01:09.8]} 50... Ke6 {[%clk
0:00:15.2]} 51. Nd3 {[%clk 0:01:07.4]} 51... Ne7 {[%clk 0:00:14.1]} 52. Ke4
{[%clk 0:01:06.8]} 52... Nf5 {[%clk 0:00:09.7]} 53. g4 {[%clk 0:01:02.6]} 53...
Nd6+ {[%clk 0:00:09.9]} 54. Ke3 {[%clk 0:01:02.7]} 54... Kd5 {[%clk 0:00:08.6]}
55. Nb4+ {[%clk 0:01:02.2]} 55... Kc4 {[%clk 0:00:06.8]} 56. Nc6 {[%clk
0:01:01.9]} 56... Kd5 {[%clk 0:00:07]} 57. Ne7+ {[%clk 0:01:02]} 57... Ke6
{[%clk 0:00:07.4]} 58. Ng6 {[%clk 0:01:02.2]} 58... Nc4+ {[%clk 0:00:07.4]} 59.
Ke2 {[%clk 0:01:01.3]} 59... Nd6 {[%clk 0:00:07.5]} 60. Nf8+ {[%clk 0:00:59]}
60... Kf7 {[%clk 0:00:07.2]} 61. Nd7 {[%clk 0:00:58.5]} 61... Ke6 {[%clk
0:00:07.8]} 62. Nb6 {[%clk 0:00:58.3]} 62... Nb5 {[%clk 0:00:07.5]} 63. Ke3
{[%clk 0:00:57.7]} 63... Nd6 {[%clk 0:00:07.2]} 64. Na4 {[%clk 0:00:56.3]} 64...
Kd5 {[%clk 0:00:07.4]} 65. Nc3+ {[%clk 0:00:55.5]} 65... Ke6 {[%clk 0:00:08]}
66. Ne4 {[%clk 0:00:55]} 66... Nc4+ {[%clk 0:00:08.5]} 67. Kd3 {[%clk
0:00:54.8]} 67... Nb6 {[%clk 0:00:08.5]} 68. Kc3 {[%clk 0:00:53]} 68... Nd5+
{[%clk 0:00:08.4]} 69. Kc4 {[%clk 0:00:53]} 69... Ne3+ {[%clk 0:00:08.2]} 70.
Kd3 {[%clk 0:00:53]} 70... Nd5 {[%clk 0:00:08.2]} 71. Ng5+ {[%clk 0:00:53]}
71... Kf6 {[%clk 0:00:07.8]} 72. Nh3 {[%clk 0:00:53.1]} 72... Ke6 {[%clk
0:00:07.9]} 73. Ke4 {[%clk 0:00:52.6]} 73... Nf6+ {[%clk 0:00:08.1]} 74. Ke3
{[%clk 0:00:52.5]} 74... Nd5+ {[%clk 0:00:08.3]} 75. Ke4 {[%clk 0:00:52.2]}
75... Nf6+ {[%clk 0:00:08.7]} 76. Ke3 {[%clk 0:00:52.6]} 76... Nd5+ {[%clk
0:00:08.4]} 77. Ke2 {[%clk 0:00:52.6]} 77... Nf6 {[%clk 0:00:08.7]} 78. Nf2
{[%clk 0:00:51.5]} 78... Nd5 {[%clk 0:00:08.4]} 79. Ne4 {[%clk 0:00:51.1]} 79...
Nf4+ {[%clk 0:00:08.9]} 80. Ke3 {[%clk 0:00:50.6]} 80... Nd5+ {[%clk 0:00:09.5]}
81. Kd3 {[%clk 0:00:50.5]} 81... Nf4+ {[%clk 0:00:10]} 82. Kc4 {[%clk
0:00:50.3]} 82... Ne2 {[%clk 0:00:09.7]} 83. Nc5+ {[%clk 0:00:50.3]} 83... Kd6
{[%clk 0:00:09.5]} 84. Nd3 {[%clk 0:00:47.6]} 84... Ke6 {[%clk 0:00:07.3]} 85.
Nf2 {[%clk 0:00:46.1]} 85... Nf4 {[%clk 0:00:06.6]} 86. Nd3 {[%clk 0:00:43.5]}
86... Nd5 {[%clk 0:00:05.6]} 87. Nc5+ {[%clk 0:00:42.2]} 87... Kd6 {[%clk
0:00:06.1]} 88. Nb7+ {[%clk 0:00:42.3]} 88... Ke6 {[%clk 0:00:06.2]} 89. Nd8+
{[%clk 0:00:42.3]} 89... Kd6 {[%clk 0:00:04.5]} 90. Nf7+ {[%clk 0:00:42.4]}
90... Ke6 {[%clk 0:00:05]} 91. Ng5+ {[%clk 0:00:42.4]} 91... Kd6 {[%clk
0:00:05.2]} 92. Kd3 {[%clk 0:00:42.5]} 92... Nf6 {[%clk 0:00:04.4]} 93. Ne4+
{[%clk 0:00:41.8]} 1-0